[Event "2nd Hersonissos Open 2018"]
[Site "Hersonissos"]
[Date "2018.06.19"]
[Round "4"]
[White "Stefanov, Evtim"]
[Black "Spirou, Gerasimos"]
[Result "1-0"]
[ECO "C48"]
[WhiteElo "1959"]
[BlackElo "1716"]
[Annotator "NA"]
[PlyCount "73"]
[EventDate "2018.06.16"]
[EventType "swiss"]
[EventCountry "GRE"]
[SourceTitle "playchess.com"]
[Source "ChessBase"]
[SourceQuality "1"]
[TimeControl "5400+30"]

1. e4 {[%emt 0:00:00]} e5 {[%emt 0:01:08]} 2. Nf3 {[%emt 0:01:15]} Nc6 {[%emt 0:00:22]} 3. Nc3 {[%emt 0:00:27]} Nf6 {[%emt 0:00:21]} 4. Bb5 {[%emt 0:00:23]} Bc5 {[%emt 0:01:48]} 5. Nxe5 {[%emt 0:02:17]} Bxf2+ {[%emt 0:05:27]} 6. Kxf2 {[%emt 0:00:59]} Nxe5 {[%emt 0:09:12]} 7. d4 {[%emt 0:01:11]} Neg4+ {[%emt 0:00:42]} 8. Kg1 {[%emt 0:01:00]} c6 {[%emt 0:01:08]} 9. Ba4 {[%emt 0:06:30]} Qb6 {[%emt 0:04:11]} 10. h3 {[%emt 0:01:29]} Ne5 {[%emt 0:00:17]} 11. Kh2 {[%emt 0:02:08]} Ng6 {[%emt 0:00:31]} 12. e5 {[%emt 0:01:32]} Qc7 {[%emt 0:03:25]} 13. g3 {[%emt 0:03:35]} Nd5 {[%emt 0:04:59]} 14. Nxd5 {[%emt 0:05:46]} cxd5 {[%emt 0:00:09]} 15. Bb3 {[%emt 0:01:16]} O-O {[%emt 0:03:51]} 16. Bxd5 $16 {[%emt 0:00:47]} d6 {[%emt 0:00:20]} 17. exd6 {[%emt 0:02:22]} Qxd6 {[%emt 0:00:07]} 18. Bg2 {[%emt 0:00:14]} Qb6 {[%emt 0:05:52]} 19. Rf1 {[%emt 0:02:20]} Bd7 {[%emt 0:02:01]} 20. b3 {[%emt 0:02:54]} Rad8 {[%emt 0:08:35]} 21. c4 {[%emt 0:00:51]} Qc7 {[%emt 0:01:34]} 22. Qf3 {[%emt 0:03:38]} Bc6 {[%emt 0:08:35]} 23. d5 {[%emt 0:00:53]} Ne5 {[%emt 0:01:11]} 24. Qf4 {[%emt 0:01:35]} Bd7 {[%emt 0:00:54]} 25. Ba3 {[%emt 0:01:26]} Rfe8 {[%emt 0:00:16]} 26. Rae1 {[%emt 0:00:58]} f6 {[%emt 0:00:22]} 27. Bb2 {[%emt 0:01:08]} Bc8 {[%emt 0:08:21]} 28. b4 {[%emt 0:00:47]} Qxc4 {[%emt 0:00:25]} 29. Bxe5 {[%emt 0:00:11]} Qxa2 {[%emt 0:05:56]} 30. Bc7 {[%emt 0:00:45]} Rxe1 {[%emt 0:01:03]} 31. Rxe1 {[%emt 0:00:02]} Rf8 {[%emt 0:00:09]} 32. Qe3 {[%emt 0:02:22]} Bd7 {[%emt 0:04:57]} 33. Re2 {[%emt 0:01:48]} Qc4 {[%emt 0:00:23]} 34. d6 {[%emt 0:02:24]} Re8 {[%emt 0:01:16]} 35. Qxe8+ {[%emt 0:00:07]} Bxe8 {[%emt 0:00:21]} 36. Rxe8+ {[%emt 0:00:04]} Kf7 {[%emt 0:00:15]} 37. d7 {[%emt 0:00:05]} 1-0

[Event "2nd Hersonissos Open 2018"]
[Site "Hersonissos"]
[Date "2018.06.19"]
[Round "4"]
[White "Haverkamp, Klaus"]
[Black "Ivanov, Svetlen"]
[Result "1-0"]
[ECO "C41"]
[WhiteElo "1921"]
[BlackElo "1591"]
[Annotator "NA"]
[PlyCount "51"]
[EventDate "2018.06.16"]
[EventType "swiss"]
[EventCountry "GRE"]
[SourceTitle "playchess.com"]
[Source "ChessBase"]
[SourceQuality "1"]
[TimeControl "5400+30"]

1. e4 {[%emt 0:00:00]} d6 {[%emt 0:00:04]} 2. Nf3 {[%emt 0:00:52]} Nf6 {[%emt 0:00:31]} 3. Nc3 {[%emt 0:01:01]} e5 {[%emt 0:01:10]} 4. d4 {[%emt 0:00:44]} Nbd7 {[%emt 0:00:25]} 5. Bc4 {[%emt 0:00:47]} Be7 {[%emt 0:00:08]} 6. O-O {[%emt 0:01:00]} O-O {[%emt 0:00:08]} 7. a4 {[%emt 0:02:08]} a6 {[%emt 0:01:03]} 8. Bg5 {[%emt 0:03:05]} b6 {[%emt 0:01:32]} 9. Bxf6 {[%emt 0:08:59]} Bxf6 {[%emt 0:00:27]} 10. Nd5 {[%emt 0:01:03]} c6 {[%emt 0:02:11]} 11. Nxf6+ {[%emt 0:05:41]} Qxf6 {[%emt 0:00:49]} 12. Ra3 {[%emt 0:10:34]} Rb8 {[%emt 0:02:57]} 13. Re1 {[%emt 0:03:42]} b5 {[%emt 0:01:32]} 14. axb5 {[%emt 0:00:42]} axb5 {[%emt 0:00:08]} 15. Bf1 {[%emt 0:03:35]} Nb6 {[%emt 0:09:34]} 16. Rd3 {[%emt 0:12:59]} Be6 {[%emt 0:24:19]} 17. b3 {[%emt 0:02:48]} Rfd8 {[%emt 0:01:42]} 18. Qd2 {[%emt 0:01:02]} Bg4 {[%emt 0:02:32]} 19. Be2 {[%emt 0:07:21]} Qg6 {[%emt 0:07:16]} 20. dxe5 {[%emt 0:05:01]} Qxe4 {[%emt 0:05:09]} 21. Rd4 {[%emt 0:05:56]} Qg6 {[%emt 0:01:58]} 22. Nh4 {[%emt 0:01:04]} Qh5 {[%emt 0:00:17]} 23. Rxg4 {[%emt 0:01:30]} dxe5 {[%emt 0:00:11]} 24. Qxd8+ {[%emt 0:04:20]} Rxd8 {[%emt 0:00:10]} 25. Rxg7+ {[%emt 0:00:03]} Kxg7 {[%emt 0:00:17]} 26. Bxh5 {[%emt 0:00:04]} 1-0

[Event "2nd Hersonissos Open 2018"]
[Site "Hersonissos"]
[Date "2018.06.19"]
[Round "4"]
[White "Maris, Ioannis"]
[Black "Roditakis, Emmanouil"]
[Result "1-0"]
[ECO "B30"]
[WhiteElo "1915"]
[BlackElo "1118"]
[Annotator "NA"]
[PlyCount "105"]
[EventDate "2018.06.16"]
[EventType "swiss"]
[EventCountry "GRE"]
[SourceTitle "playchess.com"]
[Source "ChessBase"]
[SourceQuality "1"]
[TimeControl "5400+30"]

1. e4 {[%emt 0:00:00]} c5 {[%emt 0:00:38]} 2. Nf3 {[%emt 0:00:04]} Nc6 {[%emt 0:00:09]} 3. b3 {[%emt 0:00:41]} d6 {[%emt 0:01:21]} 4. Bc4 {[%emt 0:01:04]} Bg4 {[%emt 0:00:30]} 5. Bxf7+ {[%emt 0:00:47]} Kxf7 {[%emt 0:00:31]} 6. Ng5+ {[%emt 0:00:09]} Ke8 {[%emt 0:00:07]} 7. Qxg4 {[%emt 0:00:19]} Nf6 {[%emt 0:00:15]} 8. Qe6 {[%emt 0:03:44]} Nd4 {[%emt 0:06:10]} 9. Qf7+ {[%emt 0:02:38]} Kd7 {[%emt 0:00:08]} 10. Na3 {[%emt 0:00:17]} Qe8 {[%emt 0:05:03]} 11. c3 {[%emt 0:00:36]} Nc6 {[%emt 0:01:33]} 12. Qe6+ {[%emt 0:01:34]} Kc7 {[%emt 0:00:25]} 13. d4 {[%emt 0:03:40]} cxd4 {[%emt 0:09:13]} 14. Nb5+ {[%emt 0:01:38]} Kb6 {[%emt 0:04:32]} 15. Nxd4 {[%emt 0:02:13]} a6 {[%emt 0:02:36]} 16. Be3 {[%emt 0:00:18]} Kc7 {[%emt 0:00:13]} 17. Nf7 {[%emt 0:04:23]} Rg8 {[%emt 0:02:47]} 18. f3 {[%emt 0:04:37]} Qd7 {[%emt 0:01:42]} 19. Ng5 {[%emt 0:02:47]} Qxe6 {[%emt 0:06:48]} 20. Ngxe6+ {[%emt 0:01:03]} Kd7 {[%emt 0:05:15]} 21. O-O-O {[%emt 0:04:50]} Nxd4 {[%emt 0:01:53]} 22. Nxd4 {[%emt 0:00:02]} Rc8 {[%emt 0:00:41]} 23. Kb2 {[%emt 0:00:04]} g6 {[%emt 0:00:15]} 24. g4 {[%emt 0:00:48]} Bg7 {[%emt 0:01:38]} 25. h4 {[%emt 0:02:23]} Rc7 {[%emt 0:00:31]} 26. h5 {[%emt 0:01:24]} Rgc8 {[%emt 0:00:09]} 27. Rd3 {[%emt 0:00:56]} e5 {[%emt 0:00:53]} 28. Ne2 {[%emt 0:00:18]} b5 {[%emt 0:00:13]} 29. a3 {[%emt 0:01:05]} Rb7 {[%emt 0:04:35]} 30. Ng3 {[%emt 0:03:18]} a5 {[%emt 0:01:24]} 31. hxg6 {[%emt 0:00:49]} hxg6 {[%emt 0:02:29]} 32. g5 {[%emt 0:02:33]} Ne8 {[%emt 0:01:11]} 33. Ne2 {[%emt 0:11:55]} b4 {[%emt 0:01:35]} 34. axb4 {[%emt 0:01:46]} axb4 {[%emt 0:03:09]} 35. cxb4 {[%emt 0:00:29]} Rxb4 {[%emt 0:00:08]} 36. Nc3 {[%emt 0:00:19]} Nc7 {[%emt 0:05:39]} 37. Bc5 {[%emt 0:01:03]} Rb7 {[%emt 0:00:33]} 38. Rxd6+ {[%emt 0:00:14]} Ke8 {[%emt 0:00:44]} 39. Rh7 {[%emt 0:03:23]} Nb5 {[%emt 0:02:30]} 40. Nxb5 {[%emt 0:00:00]} Rxc5 {[%emt 0:00:00]} 41. Na3 {[%emt 0:00:00]} Ra5 {[%emt 0:00:00]} 42. Rxg6 {[%emt 0:00:00]} Kf8 {[%emt 0:00:00]} 43. Rc6 {[%emt 0:00:00]} Ra8 {[%emt 0:00:00]} 44. Nc2 {[%emt 0:00:00]} Rab8 {[%emt 0:00:00]} 45. b4 {[%emt 0:00:00]} Kg8 {[%emt 0:00:00]} 46. g6 {[%emt 0:00:00]} Bf8 {[%emt 0:00:00]} 47. Rxb7 {[%emt 0:00:00]} Rxb7 {[%emt 0:00:00]} 48. Kc3 {[%emt 0:00:00]} Be7 {[%emt 0:00:00]} 49. Kc4 {[%emt 0:00:00]} Kg7 {[%emt 0:00:00]} 50. b5 {[%emt 0:00:00]} Bd8 {[%emt 0:00:00]} 51. Ne3 {[%emt 0:00:00]} Bg5 {[%emt 0:00:00]} 52. Nf5+ {[%emt 0:00:00]} Kg8 {[%emt 0:00:00]} 53. Rc8+ 1-0

[Event "2nd Hersonissos Open 2018"]
[Site "Hersonissos"]
[Date "2018.06.19"]
[Round "4"]
[White "Lichii, Elizaveta"]
[Black "Kanellopoulos, Georgios G"]
[Result "1-0"]
[ECO "C65"]
[WhiteElo "1888"]
[BlackElo "1689"]
[Annotator "NA"]
[PlyCount "107"]
[EventDate "2018.06.16"]
[EventType "swiss"]
[EventCountry "GRE"]
[SourceTitle "playchess.com"]
[Source "ChessBase"]
[SourceQuality "1"]
[TimeControl "5400+30"]

1. e4 {[%emt 0:00:00]} e5 {[%emt 0:00:08]} 2. Nf3 {[%emt 0:00:00]} Nc6 {[%emt 0:00:23]} 3. Bb5 {[%emt 0:00:00]} Nf6 {[%emt 0:00:15]} 4. O-O {[%emt 0:00:00]} Bc5 {[%emt 0:02:00]} 5. c3 {[%emt 0:00:52]} O-O {[%emt 0:00:51]} 6. d4 {[%emt 0:00:50]} Bb6 {[%emt 0:00:32]} 7. Bg5 {[%emt 0:06:55]} d6 {[%emt 0:02:22]} 8. Bxc6 {[%emt 0:09:04]} bxc6 {[%emt 0:01:00]} 9. dxe5 {[%emt 0:01:05]} dxe5 {[%emt 0:00:27]} 10. Qxd8 {[%emt 0:01:15]} Rxd8 {[%emt 0:00:14]} 11. Nxe5 {[%emt 0:00:56]} Re8 {[%emt 0:00:20]} 12. Bxf6 {[%emt 0:03:59]} gxf6 {[%emt 0:00:29]} 13. Nxc6 {[%emt 0:00:40]} Bb7 {[%emt 0:00:58]} 14. Nb4 {[%emt 0:04:45]} Rxe4 {[%emt 0:03:35]} 15. Nd2 {[%emt 0:01:39]} Rg4 {[%emt 0:04:12]} 16. g3 {[%emt 0:00:13]} f5 {[%emt 0:00:12]} 17. Rfe1 {[%emt 0:09:49]} f4 {[%emt 0:03:45]} 18. Nf1 {[%emt 0:07:24]} h5 {[%emt 0:04:14]} 19. Nd3 {[%emt 0:03:46]} fxg3 {[%emt 0:06:03]} 20. hxg3 {[%emt 0:00:05]} h4 {[%emt 0:01:26]} 21. Ne3 {[%emt 0:22:17]} Rg5 {[%emt 0:02:44]} 22. g4 {[%emt 0:07:39]} Bxe3 {[%emt 0:08:53]} 23. Rxe3 {[%emt 0:00:02]} Kg7 {[%emt 0:01:39]} 24. f3 {[%emt 0:01:41]} Rh8 {[%emt 0:03:44]} 25. Kh2 {[%emt 0:00:59]} f5 {[%emt 0:02:14]} 26. Rg1 {[%emt 0:05:50]} Kf6 {[%emt 0:03:21]} 27. Kh3 {[%emt 0:04:09]} Bc8 {[%emt 0:07:16]} 28. Nf2 {[%emt 0:02:11]} f4 {[%emt 0:00:47]} 29. Re4 {[%emt 0:00:56]} Bf5 {[%emt 0:05:30]} 30. Rxf4 {[%emt 0:00:27]} Ke5 {[%emt 0:00:58]} 31. Rxf5+ {[%emt 0:00:08]} Rxf5 {[%emt 0:00:18]} 32. gxf5 {[%emt 0:00:02]} Kxf5 {[%emt 0:00:14]} 33. Rg4 {[%emt 0:01:11]} Ke5 {[%emt 0:01:02]} 34. Nd3+ {[%emt 0:00:45]} Kd5 {[%emt 0:00:13]} 35. Rxh4 {[%emt 0:00:09]} Rxh4+ {[%emt 0:00:05]} 36. Kxh4 {[%emt 0:00:05]} Kc4 {[%emt 0:00:36]} 37. Ne5+ {[%emt 0:00:14]} Kd5 {[%emt 0:00:29]} 38. f4 {[%emt 0:00:08]} Ke6 {[%emt 0:00:13]} 39. Kg5 {[%emt 0:00:05]} Ke7 {[%emt 0:00:49]} 40. f5 {[%emt 0:00:00]} Kf8 {[%emt 0:00:00]} 41. Kg6 {[%emt 0:00:00]} Ke7 {[%emt 0:00:00]} 42. f6+ {[%emt 0:00:00]} Kf8 43. f7 Ke7 {[%emt 0:00:00]} 44. Kg7 {[%emt 0:00:00]} Ke6 {[%emt 0:00:00]} 45. f8=Q {[%emt 0:00:00]} Kxe5 {[%emt 0:00:00]} 46. Qe8+ {[%emt 0:00:00]} Kf5 {[%emt 0:00:00]} 47. Kf7 {[%emt 0:00:00]} Kf4 {[%emt 0:00:00]} 48. Qe2 {[%emt 0:00:00]} Kf5 {[%emt 0:00:00]} 49. Ke7 {[%emt 0:00:00]} Kf4 {[%emt 0:00:00]} 50. Ke6 {[%emt 0:00:00]} Kg5 {[%emt 0:00:00]} 51. Qf3 {[%emt 0:00:00]} Kg6 {[%emt 0:00:00]} 52. Qg4+ {[%emt 0:00:00]} Kh7 {[%emt 0:00:00]} 53. Kf7 {[%emt 0:00:00]} Kh6 {[%emt 0:00:00]} 54. Qg6# {[%emt 0:00:00]} 1-0

[Event "2nd Hersonissos Open 2018"]
[Site "Hersonissos"]
[Date "2018.06.19"]
[Round "4"]
[White "Bras, Emanouel"]
[Black "Alexandrakis, Georgios"]
[Result "1-0"]
[ECO "D02"]
[WhiteElo "1859"]
[BlackElo "1299"]
[Annotator "NA"]
[PlyCount "61"]
[EventDate "2018.06.16"]
[EventType "swiss"]
[EventCountry "GRE"]
[SourceTitle "playchess.com"]
[Source "ChessBase"]
[SourceQuality "1"]
[TimeControl "5400+30"]

1. d4 {[%emt 0:00:00]} d5 {[%emt 0:03:27]} 2. Nf3 {[%emt 0:00:00]} Nf6 {[%emt 0:00:13]} 3. Bf4 {[%emt 0:00:00]} c5 {[%emt 0:00:19]} 4. e3 {[%emt 0:00:20]} Nc6 {[%emt 0:00:03]} 5. Nc3 {[%emt 0:00:58]} a6 {[%emt 0:02:49]} 6. Be2 {[%emt 0:01:59]} e6 {[%emt 0:02:03]} 7. O-O {[%emt 0:01:22]} Bd6 {[%emt 0:02:01]} 8. Ne5 {[%emt 0:01:20]} Qe7 {[%emt 0:15:20]} 9. Nxc6 {[%emt 0:15:55]} bxc6 {[%emt 0:00:19]} 10. Bxd6 {[%emt 0:04:21]} Qxd6 {[%emt 0:00:09]} 11. Na4 {[%emt 0:01:21]} c4 {[%emt 0:11:31]} 12. b3 {[%emt 0:07:13]} Qb4 {[%emt 0:14:40]} 13. c3 {[%emt 0:01:05]} Qb5 {[%emt 0:12:00]} 14. bxc4 {[%emt 0:00:46]} dxc4 {[%emt 0:06:16]} 15. Rb1 {[%emt 0:04:32]} Qa5 {[%emt 0:04:34]} 16. Nb6 {[%emt 0:01:33]} Rb8 {[%emt 0:01:59]} 17. Nxc4 {[%emt 0:01:39]} Qc7 {[%emt 0:01:58]} 18. Rxb8 {[%emt 0:02:33]} Qxb8 {[%emt 0:00:04]} 19. Ne5 {[%emt 0:00:50]} Qb6 {[%emt 0:03:36]} 20. Qb3 {[%emt 0:11:59]} Qc7 {[%emt 0:01:49]} 21. Qa3 {[%emt 0:01:01]} h5 {[%emt 0:02:13]} 22. Bxa6 {[%emt 0:11:41]} Ng4 {[%emt 0:04:08]} 23. Bxc8 {[%emt 0:02:02]} Qxc8 {[%emt 0:00:15]} 24. Nc4 {[%emt 0:01:15]} Qd8 {[%emt 0:02:51]} 25. h3 {[%emt 0:02:57]} Nf6 {[%emt 0:01:12]} 26. Nd6+ {[%emt 0:01:13]} Kf8 {[%emt 0:01:35]} 27. Rb1 {[%emt 0:02:54]} g5 {[%emt 0:01:14]} 28. Rb7 {[%emt 0:01:45]} Nd7 {[%emt 0:01:08]} 29. Ne4+ {[%emt 0:10:50]} Ke8 {[%emt 0:01:35]} 30. Qa7 {[%emt 0:01:16]} g4 {[%emt 0:01:40]} 31. Rxd7 {[%emt 0:00:15]} 1-0

[Event "2nd Hersonissos Open 2018"]
[Site "Hersonissos"]
[Date "2018.06.19"]
[Round "4"]
[White "Warnk, Torsten"]
[Black "Djingarova, Emilia"]
[Result "0-1"]
[ECO "A48"]
[WhiteElo "1853"]
[BlackElo "2218"]
[Annotator "NA"]
[PlyCount "94"]
[EventDate "2018.06.16"]
[EventType "swiss"]
[EventCountry "GRE"]
[SourceTitle "playchess.com"]
[Source "ChessBase"]
[SourceQuality "1"]
[TimeControl "5400+30"]

1. d4 {[%emt 0:00:00]} Nf6 {[%emt 0:00:54]} 2. Nf3 {[%emt 0:00:00]} g6 {[%emt 0:00:14]} 3. c4 {[%emt 0:00:15]} Bg7 {[%emt 0:00:12]} 4. Nc3 {[%emt 0:00:18]} O-O {[%emt 0:00:36]} 5. Bf4 {[%emt 0:00:42]} d6 {[%emt 0:01:26]} 6. e3 {[%emt 0:00:19]} b6 {[%emt 0:01:56]} 7. Be2 {[%emt 0:02:34]} Bb7 {[%emt 0:00:29]} 8. O-O {[%emt 0:00:08]} Nbd7 {[%emt 0:00:33]} 9. Rc1 {[%emt 0:03:07]} h6 {[%emt 0:05:28]} 10. h3 {[%emt 0:03:55]} Ne4 {[%emt 0:00:38]} 11. Nxe4 {[%emt 0:00:58]} Bxe4 {[%emt 0:00:06]} 12. Nd2 {[%emt 0:00:13]} Bb7 {[%emt 0:01:36]} 13. Bf3 {[%emt 0:00:14]} Bxf3 {[%emt 0:01:59]} 14. Nxf3 {[%emt 0:01:10]} e5 {[%emt 0:00:25]} 15. dxe5 {[%emt 0:09:16]} dxe5 {[%emt 0:01:14]} 16. Bg3 {[%emt 0:00:22]} Qe7 {[%emt 0:02:38]} 17. Qc2 {[%emt 0:08:38]} a5 {[%emt 0:02:04]} 18. b3 {[%emt 0:02:58]} f5 $11 {[%emt 0:10:32]} 19. Rcd1 {[%emt 0:09:11]} Nc5 {[%emt 0:06:39]} 20. Rd5 {[%emt 0:11:00]} f4 {[%emt 0:10:38]} 21. exf4 {[%emt 0:07:55]} exf4 {[%emt 0:00:15]} 22. Re1 {[%emt 0:00:30]} Qf6 {[%emt 0:04:32]} 23. Bh2 {[%emt 0:01:31]} Rad8 {[%emt 0:04:10]} 24. Qd2 {[%emt 0:07:04]} g5 {[%emt 0:07:05]} 25. Ne5 {[%emt 0:04:59]} Rxd5 {[%emt 0:06:14]} 26. Qxd5+ {[%emt 0:00:11]} Qe6 {[%emt 0:02:38]} 27. Qxe6+ {[%emt 0:07:20]} Nxe6 {[%emt 0:00:12]} 28. g3 {[%emt 0:00:08]} Nd4 {[%emt 0:06:20]} 29. Kf1 {[%emt 0:06:06]} Bxe5 {[%emt 0:00:39]} 30. Rxe5 {[%emt 0:00:08]} Nf3 {[%emt 0:00:04]} 31. gxf4 {[%emt 0:03:04]} Nxe5 {[%emt 0:01:24]} 32. fxe5 {[%emt 0:00:11]} Re8 {[%emt 0:00:38]} 33. Ke2 {[%emt 0:02:54]} Kf7 {[%emt 0:00:15]} 34. Kf3 {[%emt 0:00:44]} Ke6 {[%emt 0:04:34]} 35. Ke3 {[%emt 0:05:45]} c6 {[%emt 0:04:48]} 36. f4 {[%emt 0:00:49]} gxf4+ {[%emt 0:04:10]} 37. Bxf4 {[%emt 0:00:13]} h5 {[%emt 0:00:04]} 38. Ke4 {[%emt 0:02:26]} Rg8 {[%emt 0:02:52]} 39. Be3 {[%emt 0:01:36]} b5 {[%emt 0:00:22]} 40. cxb5 {[%emt 0:00:00]} cxb5 {[%emt 0:00:00]} 41. Bb6 {[%emt 0:00:00]} a4 {[%emt 0:00:00]} 42. bxa4 {[%emt 0:00:00]} bxa4 {[%emt 0:00:00]} 43. a3 {[%emt 0:00:00]} Rg3 {[%emt 0:00:00]} 44. Bc5 {[%emt 0:00:00]} Rxh3 {[%emt 0:00:00]} 45. Kf4 {[%emt 0:00:00]} Rc3 {[%emt 0:00:00]} 46. Bb4 {[%emt 0:00:00]} Rc4+ {[%emt 0:00:00]} 47. Kg5 {[%emt 0:00:00]} Rxb4 {[%emt 0:00:00]} 0-1

[Event "2nd Hersonissos Open 2018"]
[Site "Hersonissos"]
[Date "2018.06.19"]
[Round "4"]
[White "Storkebaum, Ulrike"]
[Black "Bit-Narva, David"]
[Result "0-1"]
[ECO "B06"]
[WhiteElo "1825"]
[BlackElo "1926"]
[Annotator "NA"]
[PlyCount "154"]
[EventDate "2018.06.16"]
[EventType "swiss"]
[EventCountry "GRE"]
[SourceTitle "playchess.com"]
[Source "ChessBase"]
[SourceQuality "1"]
[TimeControl "5400+30"]

1. e4 {[%emt 0:00:00]} g6 {[%emt 0:00:08]} 2. d4 {[%emt 0:00:13]} Bg7 {[%emt 0:00:08]} 3. f4 {[%emt 0:01:27]} d6 {[%emt 0:00:08]} 4. h3 {[%emt 0:00:55]} Nd7 {[%emt 0:00:25]} 5. Nf3 {[%emt 0:00:12]} e6 {[%emt 0:00:12]} 6. Nc3 {[%emt 0:01:33]} a6 {[%emt 0:00:11]} 7. Be3 {[%emt 0:01:08]} Ne7 {[%emt 0:01:21]} 8. Qd2 {[%emt 0:01:34]} O-O {[%emt 0:00:20]} 9. Bd3 {[%emt 0:00:40]} b5 {[%emt 0:00:21]} 10. O-O {[%emt 0:01:49]} Bb7 {[%emt 0:03:42]} 11. Rad1 {[%emt 0:01:40]} c5 {[%emt 0:00:42]} 12. dxc5 {[%emt 0:13:31]} Nxc5 {[%emt 0:00:33]} 13. Bd4 {[%emt 0:09:01]} Bxd4+ {[%emt 0:14:20]} 14. Nxd4 {[%emt 0:00:09]} b4 {[%emt 0:00:41]} 15. Nce2 {[%emt 0:00:46]} Bxe4 {[%emt 0:01:17]} 16. Bxe4 {[%emt 0:00:44]} Nxe4 {[%emt 0:00:06]} 17. Qxb4 {[%emt 0:00:27]} Nd5 {[%emt 0:01:02]} 18. Qa3 {[%emt 0:04:26]} Qb6 {[%emt 0:08:44]} 19. Kh2 {[%emt 0:02:55]} Rab8 {[%emt 0:08:45]} 20. Qf3 {[%emt 0:01:40]} Nef6 {[%emt 0:06:07]} 21. c4 {[%emt 0:10:02]} Ne7 {[%emt 0:00:23]} 22. b3 {[%emt 0:00:48]} Qb7 {[%emt 0:04:20]} 23. Qxb7 {[%emt 0:01:57]} Rxb7 {[%emt 0:00:05]} 24. Nf3 {[%emt 0:00:55]} d5 {[%emt 0:03:18]} 25. Ne5 {[%emt 0:01:37]} Nf5 {[%emt 0:01:01]} 26. Rd3 {[%emt 0:00:00]} dxc4 {[%emt 0:07:40]} 27. Nxc4 {[%emt 0:03:18]} Ne4 {[%emt 0:00:54]} 28. g4 {[%emt 0:00:59]} Ne7 {[%emt 0:00:30]} 29. Rd4 {[%emt 0:03:46]} Nc5 {[%emt 0:04:45]} 30. Ne3 {[%emt 0:05:25]} Rd7 {[%emt 0:06:41]} 31. Rxd7 {[%emt 0:03:13]} Nxd7 {[%emt 0:00:06]} 32. Rd1 {[%emt 0:00:25]} Nb6 {[%emt 0:00:54]} 33. Rd6 {[%emt 0:01:37]} Rb8 {[%emt 0:00:06]} 34. Kg3 {[%emt 0:05:22]} a5 {[%emt 0:02:35]} 35. Kf3 {[%emt 0:00:46]} Ned5 {[%emt 0:03:01]} 36. Nxd5 {[%emt 0:02:01]} Nxd5 {[%emt 0:00:06]} 37. f5 {[%emt 0:01:08]} Nb4 {[%emt 0:00:47]} 38. fxe6 {[%emt 0:01:49]} fxe6 {[%emt 0:00:09]} 39. Rxe6 {[%emt 0:01:42]} Kf7 {[%emt 0:01:53]} 40. Rd6 {[%emt 0:00:00]} Nxa2 {[%emt 0:00:00]} 41. Rd7+ {[%emt 0:00:00]} Kf6 {[%emt 0:00:00]} 42. Rd3 {[%emt 0:00:00]} Nb4 {[%emt 0:00:00]} 43. Rc3 {[%emt 0:00:00]} Nd5 {[%emt 0:00:00]} 44. Rd3 {[%emt 0:00:00]} Ke5 {[%emt 0:00:00]} 45. Kg3 {[%emt 0:00:00]} Rc8 {[%emt 0:00:00]} 46. Kf3 {[%emt 0:06:51]} h6 {[%emt 0:00:00]} 47. Rd2 {[%emt 0:04:18]} Rf8+ {[%emt 0:00:00]} 48. Kg2 {[%emt 0:03:56]} Ne3+ {[%emt 0:00:00]} 49. Kg1 {[%emt 0:05:57]} Rf1+ {[%emt 0:00:13]} 50. Kh2 {[%emt 0:00:03]} Rb1 {[%emt 0:10:48]} 51. Ra2 {[%emt 0:00:01]} Nd5 {[%emt 0:01:14]} 52. Ng3 {[%emt 0:00:19]} Kf4 {[%emt 0:03:02]} 53. Ne2+ {[%emt 0:00:01]} Ke4 {[%emt 0:06:54]} 54. Ng3+ {[%emt 0:00:13]} Kf3 {[%emt 0:00:42]} 55. Rd2 {[%emt 0:00:25]} Nf4 {[%emt 0:01:16]} 56. Nh1 {[%emt 0:01:13]} Rxb3 {[%emt 0:01:28]} 57. Rf2+ {[%emt 0:00:16]} Ke3 {[%emt 0:00:10]} 58. Ra2 {[%emt 0:00:24]} a4 {[%emt 0:01:58]} 59. Ng3 {[%emt 0:00:15]} a3 {[%emt 0:01:05]} 60. Nf1+ {[%emt 0:00:08]} Kd3 {[%emt 0:00:38]} 61. Nd2 {[%emt 0:02:00]} Rb2 {[%emt 0:00:42]} 62. Rxa3+ {[%emt 0:00:08]} Kxd2 {[%emt 0:00:06]} 63. Kg3 {[%emt 0:00:18]} g5 {[%emt 0:01:26]} 64. h4 {[%emt 0:00:05]} Ne2+ {[%emt 0:00:46]} 65. Kh3 {[%emt 0:00:18]} Rb5 {[%emt 0:01:05]} 66. hxg5 {[%emt 0:00:12]} hxg5 {[%emt 0:00:03]} 67. Ra8 {[%emt 0:00:07]} Ke3 {[%emt 0:00:16]} 68. Re8+ {[%emt 0:00:10]} Kf3 {[%emt 0:00:16]} 69. Ra8 {[%emt 0:00:21]} Nf4+ {[%emt 0:00:22]} 70. Kh2 {[%emt 0:00:08]} Rb2+ {[%emt 0:01:07]} 71. Kh1 {[%emt 0:00:51]} Kxg4 {[%emt 0:00:39]} 72. Ra3 {[%emt 0:00:11]} Kh4 {[%emt 0:00:55]} 73. Kg1 {[%emt 0:00:23]} g4 {[%emt 0:00:20]} 74. Ra8 {[%emt 0:00:19]} g3 {[%emt 0:00:27]} 75. Ra1 {[%emt 0:01:52]} Kh3 {[%emt 0:00:23]} 76. Kh1 {[%emt 0:00:29]} Rh2+ {[%emt 0:00:42]} 77. Kg1 {[%emt 0:00:08]} Ne2+ {[%emt 0:00:13]} 0-1